[Event "GrandPrix_30.05"]
[Site "Chess.com"]
[Date "2020.05.30"]
[Round "6"]
[White "AlexVanGog"]
[Black "Ave_Mariia"]
[Result "1-0"]
[WhiteElo "2448"]
[BlackElo "2202"]
[TimeControl "600+2"]
[EndTime "10:52:25 PDT"]
[Termination "AlexVanGog won by resignation"]

1. d4 {[%clk 0:10:01.9]} 1... Nf6 {[%clk 0:10:00.7]} 2. c4 {[%clk 0:10:02.8]}
2... e6 {[%clk 0:10:02]} 3. Nf3 {[%clk 0:10:03.3]} 3... Bb4+ {[%clk 0:10:02.9]}
4. Nbd2 {[%clk 0:10:03.7]} 4... O-O {[%clk 0:09:50.3]} 5. a3 {[%clk 0:10:04.5]}
5... Bxd2+ {[%clk 0:09:34.3]} 6. Qxd2 {[%clk 0:10:05.7]} 6... b6 {[%clk
0:09:28.4]} 7. e3 {[%clk 0:10:06.9]} 7... Bb7 {[%clk 0:09:29.5]} 8. Be2 {[%clk
0:10:08.5]} 8... d6 {[%clk 0:09:19.8]} 9. O-O {[%clk 0:10:09.2]} 9... Nbd7
{[%clk 0:09:20.5]} 10. b4 {[%clk 0:10:09.6]} 10... e5 {[%clk 0:09:06.3]} 11. d5
{[%clk 0:10:08.2]} 11... Ne4 {[%clk 0:08:37.7]} 12. Qc2 {[%clk 0:10:08.2]} 12...
f5 {[%clk 0:08:38.5]} 13. Nd2 {[%clk 0:09:42.6]} 13... Ndf6 {[%clk 0:08:16.7]}
14. Nxe4 {[%clk 0:09:42.8]} 14... Nxe4 {[%clk 0:08:17.6]} 15. f3 {[%clk
0:09:42.4]} 15... Ng5 {[%clk 0:07:55.2]} 16. a4 {[%clk 0:09:42.5]} 16... Qf6
{[%clk 0:07:27.1]} 17. a5 {[%clk 0:09:40.4]} 17... h5 {[%clk 0:06:08.5]} 18. Bd2
{[%clk 0:09:36.8]} 18... h4 {[%clk 0:06:05.8]} 19. h3 {[%clk 0:08:59]} 19... Qg6
{[%clk 0:05:43.8]} 20. Kh1 {[%clk 0:08:54]} 20... Rae8 {[%clk 0:05:04.8]} 21.
axb6 {[%clk 0:08:52.4]} 21... axb6 {[%clk 0:05:05.7]} 22. Ra7 {[%clk 0:08:53.6]}
22... Rb8 {[%clk 0:05:06.1]} 23. Be1 {[%clk 0:08:49]} 23... Qh6 {[%clk
0:04:49.2]} 24. Bf2 {[%clk 0:08:49.1]} 24... e4 {[%clk 0:04:22.3]} 25. f4 {[%clk
0:08:47.9]} 25... Nh7 {[%clk 0:04:18.1]} 26. c5 {[%clk 0:08:40.5]} 26... bxc5
{[%clk 0:04:01.4]} 27. bxc5 {[%clk 0:08:40.8]} 27... Bxd5 {[%clk 0:03:56.6]} 28.
Rxc7 {[%clk 0:08:41.4]} 28... dxc5 {[%clk 0:03:26.9]} 29. Qxc5 {[%clk
0:08:40.9]} 29... Qe6 {[%clk 0:02:50]} 30. Bxh4 {[%clk 0:08:38.7]} 30... Rfc8
{[%clk 0:02:15.9]} 31. Rc1 {[%clk 0:08:33.5]} 31... Rxc7 {[%clk 0:02:08.8]} 32.
Qxc7 {[%clk 0:08:34.9]} 32... Ra8 {[%clk 0:01:44.7]} 33. Bf1 {[%clk 0:08:30.3]}
33... Nf8 {[%clk 0:01:38]} 34. Be1 {[%clk 0:08:26.2]} 34... Ra3 {[%clk
0:01:15.7]} 35. Bb4 {[%clk 0:08:21.7]} 35... Ra8 {[%clk 0:01:07.4]} 36. Bc3
{[%clk 0:08:21]} 36... Qf7 {[%clk 0:00:52]} 37. Qxf7+ {[%clk 0:08:18.1]} 37...
Kxf7 {[%clk 0:00:50.9]} 38. g4 {[%clk 0:08:19.5]} 38... fxg4 {[%clk 0:00:46.9]}
39. hxg4 {[%clk 0:08:20.5]} 39... Ne6 {[%clk 0:00:40.5]} 40. Be5 {[%clk
0:08:16.1]} 40... g6 {[%clk 0:00:20.1]} 41. Rd1 {[%clk 0:08:08.7]} 41... Ra5
{[%clk 0:00:17.7]} 42. Kg1 {[%clk 0:08:08]} 42... Ke7 {[%clk 0:00:16.1]} 43. Bg2
{[%clk 0:08:03.6]} 43... Rc5 {[%clk 0:00:14.2]} 44. Ra1 {[%clk 0:07:59.9]} 44...
Nd8 {[%clk 0:00:11.4]} 45. Bd4 {[%clk 0:07:53.6]} 45... Rc7 {[%clk 0:00:11.2]}
46. f5 {[%clk 0:07:55]} 46... gxf5 {[%clk 0:00:12.2]} 47. gxf5 {[%clk
0:07:56.6]} 47... Nc6 {[%clk 0:00:11.2]} 48. Bc3 {[%clk 0:07:45.4]} 48... Kf7
{[%clk 0:00:11.6]} 49. Rd1 {[%clk 0:07:43.9]} 49... Ne7 {[%clk 0:00:12.4]} 50.
Be5 {[%clk 0:07:41.6]} 50... Rc5 {[%clk 0:00:10.6]} 51. Bd6 {[%clk 0:07:38.6]}
51... Rb5 {[%clk 0:00:11.6]} 52. Bh3 {[%clk 0:07:32.4]} 52... Bb3 {[%clk
0:00:10]} 53. Rb1 {[%clk 0:07:21.7]} 53... Bc4 {[%clk 0:00:09.8]} 54. Rc1 {[%clk
0:07:17.9]} 54... Bd5 {[%clk 0:00:07]} 55. Rc7 {[%clk 0:07:18.1]} 55... Rb7
{[%clk 0:00:08.2]} 56. Rc5 {[%clk 0:07:07.7]} 56... Bb3 {[%clk 0:00:06.3]} 57.
Kf2 {[%clk 0:07:05.8]} 57... Rd7 {[%clk 0:00:07.5]} 58. Bxe7 {[%clk 0:06:58.8]}
58... Rxe7 {[%clk 0:00:08.3]} 59. Kg3 {[%clk 0:06:59.8]} 59... Rd7 {[%clk
0:00:08.6]} 60. Kf4 {[%clk 0:07:00.6]} 60... Bd5 {[%clk 0:00:09.8]} 61. Bg2
{[%clk 0:06:58.1]} 61... Bb7 {[%clk 0:00:09.4]} 62. Bxe4 {[%clk 0:06:58.3]}
62... Bxe4 {[%clk 0:00:09.7]} 63. Kxe4 {[%clk 0:07:00]} 63... Re7+ {[%clk
0:00:11.2]} 64. Kf4 {[%clk 0:07:00.9]} 64... Kf6 {[%clk 0:00:12.2]} 65. Rc6+
{[%clk 0:07:01]} 65... Kf7 {[%clk 0:00:13.4]} 66. e4 {[%clk 0:07:02.6]} 66...
Rb7 {[%clk 0:00:13.8]} 67. e5 {[%clk 0:07:03.6]} 67... Rb1 {[%clk 0:00:14]} 68.
Rc7+ {[%clk 0:07:04.3]} 68... Kf8 {[%clk 0:00:14.8]} 69. e6 {[%clk 0:07:05.5]}
1-0

[Event "GrandPrix_30.05"]
[Site "Chess.com"]
[Date "2020.05.30"]
[Round "6"]
[White "Frozygul"]
[Black "yamalchess"]
[Result "1/2-1/2"]
[WhiteElo "2200"]
[BlackElo "2354"]
[TimeControl "600+2"]
[EndTime "10:52:28 PDT"]
[Termination "Game drawn by agreement"]

1. d4 {[%clk 0:10:01.9]} 1... f5 {[%clk 0:09:58.4]} 2. e4 {[%clk 0:10:02.8]}
2... fxe4 {[%clk 0:09:58.2]} 3. Nc3 {[%clk 0:10:02.6]} 3... Nf6 {[%clk
0:09:53.9]} 4. Bg5 {[%clk 0:10:03]} 4... Nc6 {[%clk 0:09:53.9]} 5. d5 {[%clk
0:10:03.1]} 5... Ne5 {[%clk 0:09:54.6]} 6. Qe2 {[%clk 0:10:04.3]} 6... c6 {[%clk
0:09:50.6]} 7. d6 {[%clk 0:09:39]} 7... Qa5 {[%clk 0:09:27.5]} 8. O-O-O {[%clk
0:09:14.2]} 8... Nd3+ {[%clk 0:08:57.5]} 9. cxd3 {[%clk 0:09:08.2]} 9... Qxg5+
{[%clk 0:08:57.5]} 10. Kb1 {[%clk 0:09:09.3]} 10... exd6 {[%clk 0:07:58]} 11.
Nxe4 {[%clk 0:08:49.5]} 11... Nxe4 {[%clk 0:07:53.2]} 12. Qxe4+ {[%clk
0:08:51.4]} 12... Kd8 {[%clk 0:07:42.8]} 13. d4 {[%clk 0:08:28.2]} 13... d5
{[%clk 0:07:41]} 14. Nf3 {[%clk 0:08:18.7]} 14... Qf6 {[%clk 0:07:07.8]} 15. Qc2
{[%clk 0:08:04.3]} 15... d6 {[%clk 0:07:05]} 16. Bd3 {[%clk 0:08:00.6]} 16...
Bg4 {[%clk 0:07:04.9]} 17. Rde1 {[%clk 0:07:56.8]} 17... g6 {[%clk 0:06:47]} 18.
h4 {[%clk 0:07:33.6]} 18... Bxf3 {[%clk 0:06:39.7]} 19. gxf3 {[%clk 0:07:34.1]}
19... Bh6 {[%clk 0:06:36.7]} 20. h5 {[%clk 0:07:32.6]} 20... Kc7 {[%clk
0:06:28.5]} 21. hxg6 {[%clk 0:07:29.5]} 21... hxg6 {[%clk 0:06:28.5]} 22. Bxg6
{[%clk 0:07:31]} 22... Bf4 {[%clk 0:06:16.4]} 23. Bh5 {[%clk 0:06:29]} 23...
Raf8 {[%clk 0:06:05.1]} 24. Bg4 {[%clk 0:06:27.7]} 24... Rxh1 {[%clk 0:05:55.7]}
25. Rxh1 {[%clk 0:06:29.6]} 25... Rf7 {[%clk 0:05:55.2]} 26. Rh7 {[%clk
0:06:25.8]} 26... Bh6 {[%clk 0:04:50.7]} 27. Qf5 {[%clk 0:06:18.2]} 27... Qxf5+
{[%clk 0:04:45.7]} 28. Bxf5 {[%clk 0:06:20.1]} 28... Rxh7 {[%clk 0:04:46.5]} 29.
Bxh7 {[%clk 0:06:22]} 29... Bg7 {[%clk 0:04:47.8]} 30. f4 {[%clk 0:06:09.6]}
30... Bxd4 {[%clk 0:04:47.6]} 31. f3 {[%clk 0:06:11.5]} 31... Bf6 {[%clk
0:04:45.7]} 32. Kc2 {[%clk 0:06:12.4]} 32... c5 {[%clk 0:04:46.2]} 33. Bg8
{[%clk 0:06:10.8]} 33... Kc6 {[%clk 0:04:46.9]} 34. a4 {[%clk 0:06:10.1]} 34...
c4 {[%clk 0:04:41]} 35. b3 {[%clk 0:06:11.1]} 35... Kc5 {[%clk 0:04:40.8]} 36.
f5 {[%clk 0:06:05.9]} 36... a5 {[%clk 0:04:36.4]} 37. Be6 {[%clk 0:05:21.7]}
37... b6 {[%clk 0:04:35.7]} 38. Bg8 {[%clk 0:05:18.3]} 38... Kd4 {[%clk
0:03:39.5]} 39. Bf7 {[%clk 0:05:13.2]} 39... Bd8 {[%clk 0:03:38.6]} 40. f6
{[%clk 0:05:04.5]} 40... Bxf6 {[%clk 0:03:38]} 41. Bg6 {[%clk 0:05:05.9]} 41...
Kc5 {[%clk 0:03:23]} 42. Bf7 {[%clk 0:05:05]} 42... Be5 {[%clk 0:03:23]} 43. Be6
{[%clk 0:05:04.4]} 43... Bg7 {[%clk 0:03:22.8]} 44. Bf7 {[%clk 0:05:03.6]} 44...
c3 {[%clk 0:03:21.1]} 45. Kd3 {[%clk 0:05:02.1]} 45... d4 {[%clk 0:03:22]} 46.
Bc4 {[%clk 0:04:59.7]} 46... d5 {[%clk 0:03:18.4]} 47. Bb5 {[%clk 0:05:00]}
47... Kb4 {[%clk 0:03:19.4]} 48. Kc2 {[%clk 0:04:59.2]} 48... Be5 {[%clk
0:03:10.2]} 49. Bd3 {[%clk 0:04:58.3]} 49... Bf4 {[%clk 0:03:02.1]} 50. Bh7
{[%clk 0:04:55.6]} 50... Be5 {[%clk 0:02:47]} 51. Bd3 {[%clk 0:04:55.8]} 51...
Bf6 {[%clk 0:02:41.2]} 52. Bg6 {[%clk 0:04:56.2]} 52... d3+ {[%clk 0:02:40.4]}
53. Bxd3 {[%clk 0:04:55.4]} 53... Kc5 {[%clk 0:02:41.6]} 54. Bf5 {[%clk
0:04:41.1]} 54... Kd4 {[%clk 0:02:42.4]} 55. Bd3 {[%clk 0:04:37.8]} 55... Ke3
{[%clk 0:02:43]} 56. Bb5 {[%clk 0:04:39.7]} 56... Kxf3 {[%clk 0:02:43.3]} 57.
Bd3 {[%clk 0:04:41.6]} 57... Ke3 {[%clk 0:02:44.2]} 58. Bb5 {[%clk 0:04:43.5]}
58... Kd4 {[%clk 0:02:45.1]} 59. Bd3 {[%clk 0:04:43.8]} 59... Kc5 {[%clk
0:02:46.1]} 60. Bb5 {[%clk 0:04:45]} 60... Kb4 {[%clk 0:02:47.1]} 61. Bd3 {[%clk
0:04:46]} 61... Ka3 {[%clk 0:02:46.6]} 62. Bb5 {[%clk 0:04:47.2]} 62... d4
{[%clk 0:02:48]} 63. Bd3 {[%clk 0:04:47.4]} 63... Kb4 {[%clk 0:02:49.1]} 64. Bb5
{[%clk 0:04:48.5]} 64... Bg7 {[%clk 0:02:44.8]} 65. Bd3 {[%clk 0:04:50.4]} 65...
Bh6 {[%clk 0:02:45.2]} 66. Bb5 {[%clk 0:04:52.3]} 66... Be3 {[%clk 0:02:43.1]}
67. Bd3 {[%clk 0:04:54.2]} 67... Bd2 {[%clk 0:02:43.2]} 68. Bb5 {[%clk
0:04:55.8]} 68... Kc5 {[%clk 0:02:41.4]} 69. Bd3 {[%clk 0:04:57.7]} 69... Bf4
{[%clk 0:02:37.2]} 70. Bb5 {[%clk 0:04:59.6]} 70... Bd6 {[%clk 0:02:33.9]} 71.
Bd3 {[%clk 0:05:01.5]} 71... Kd5 {[%clk 0:02:34.9]} 72. Bb5 {[%clk 0:05:03.4]}
72... Bb4 {[%clk 0:02:35.5]} 73. Bd3 {[%clk 0:05:05.3]} 73... Ke5 {[%clk
0:02:36.2]} 74. Bb5 {[%clk 0:05:07.2]} 1/2-1/2

[Event "GrandPrix_30.05"]
[Site "Chess.com"]
[Date "2020.05.30"]
[Round "6"]
[White "Gurvich_Vitaly"]
[Black "Hakob-Hakobyan-Arm"]
[Result "0-1"]
[WhiteElo "2220"]
[BlackElo "2167"]
[TimeControl "600+2"]
[EndTime "10:52:34 PDT"]
[Termination "Hakob-Hakobyan-Arm won by resignation"]

1. e4 {[%clk 0:10:01.9]} 1... Nc6 {[%clk 0:09:59.9]} 2. Nf3 {[%clk 0:09:59.4]}
2... d6 {[%clk 0:10:00.3]} 3. d4 {[%clk 0:09:57.1]} 3... Nf6 {[%clk 0:10:00.3]}
4. Nc3 {[%clk 0:09:57.4]} 4... g6 {[%clk 0:10:01.1]} 5. Bb5 {[%clk 0:09:58.1]}
5... a6 {[%clk 0:09:55]} 6. Bxc6+ {[%clk 0:09:58]} 6... bxc6 {[%clk 0:09:56.9]}
7. h3 {[%clk 0:09:59.6]} 7... Bg7 {[%clk 0:09:57.6]} 8. Qe2 {[%clk 0:10:00]}
8... O-O {[%clk 0:09:58]} 9. O-O {[%clk 0:09:58.3]} 9... Nd7 {[%clk 0:09:51]}
10. e5 {[%clk 0:09:55.1]} 10... c5 {[%clk 0:09:04.6]} 11. e6 {[%clk 0:09:10.1]}
11... fxe6 {[%clk 0:09:04.6]} 12. Ng5 {[%clk 0:09:10.6]} 12... cxd4 {[%clk
0:08:13.1]} 13. Nxe6 {[%clk 0:09:10.2]} 13... Qe8 {[%clk 0:08:14.1]} 14. Nd5
{[%clk 0:08:57.9]} 14... Qf7 {[%clk 0:07:55.3]} 15. Ndxc7 {[%clk 0:08:39.9]}
15... Rb8 {[%clk 0:07:33.7]} 16. Re1 {[%clk 0:07:59.9]} 16... Ne5 {[%clk
0:06:57.9]} 17. Nxf8 {[%clk 0:07:54.1]} 17... Kxf8 {[%clk 0:06:59.8]} 18. f4
{[%clk 0:07:53.7]} 18... d3 {[%clk 0:06:50.9]} 19. cxd3 {[%clk 0:07:49.1]} 19...
Nc6 {[%clk 0:06:51.6]} 20. Ne6+ {[%clk 0:07:48.5]} 20... Bxe6 {[%clk 0:06:37.4]}
21. Qxe6 {[%clk 0:07:50.4]} 21... Qxe6 {[%clk 0:06:32.4]} 22. Rxe6 {[%clk
0:07:52.3]} 22... Nd4 {[%clk 0:06:33.7]} 23. Re4 {[%clk 0:07:47]} 23... d5
{[%clk 0:06:34.9]} 24. Re3 {[%clk 0:06:19.3]} 24... Nc2 {[%clk 0:06:35.3]} 25.
Rb1 {[%clk 0:06:20.3]} 25... Bd4 {[%clk 0:06:04.1]} 26. Kf2 {[%clk 0:06:20.2]}
26... Na3 {[%clk 0:05:43.4]} 27. Ra1 {[%clk 0:06:19.3]} 27... Nc2 {[%clk
0:05:40.5]} 28. Rb1 {[%clk 0:06:20]} 28... Na3 {[%clk 0:05:37.2]} 29. Ra1 {[%clk
0:06:20.8]} 29... Bxe3+ {[%clk 0:05:31.9]} 30. Bxe3 {[%clk 0:06:16.4]} 30...
Rxb2+ {[%clk 0:05:33.4]} 31. Kf3 {[%clk 0:06:14.4]} 31... Nc2 {[%clk 0:05:34.9]}
32. Rg1 {[%clk 0:06:10.5]} 32... Nxe3 {[%clk 0:05:25.2]} 33. Kxe3 {[%clk
0:06:12.4]} 33... Rxa2 {[%clk 0:05:27]} 34. Kd4 {[%clk 0:06:13.6]} 34... e6
{[%clk 0:05:24.7]} 35. Rc1 {[%clk 0:06:13.4]} 35... Kf7 {[%clk 0:05:19.7]} 36.
g4 {[%clk 0:06:13.7]} 36... Kf6 {[%clk 0:05:03.8]} 37. Rc7 {[%clk 0:06:10.8]}
37... h6 {[%clk 0:04:54.9]} 38. Rh7 {[%clk 0:06:03.5]} 38... a5 {[%clk
0:04:38.9]} 39. h4 {[%clk 0:05:59.3]} 39... Ra4+ {[%clk 0:03:50.9]} 40. Ke3
{[%clk 0:05:58.4]} 40... e5 {[%clk 0:03:49.7]} 41. fxe5+ {[%clk 0:04:35.7]}
41... Kxe5 {[%clk 0:03:51.6]} 42. Rxh6 {[%clk 0:03:57.5]} 42... Rxg4 {[%clk
0:03:51.6]} 43. h5 {[%clk 0:03:57.9]} 43... g5 {[%clk 0:03:44.6]} 44. Ra6 {[%clk
0:03:57.4]} 44... a4 {[%clk 0:03:42]} 45. h6 {[%clk 0:03:56.8]} 45... Rh4 {[%clk
0:03:29.2]} 46. h7 {[%clk 0:03:57.2]} 46... Rxh7 {[%clk 0:03:21.7]} 47. Rxa4
{[%clk 0:03:55.8]} 47... Rh3+ {[%clk 0:03:23.3]} 48. Ke2 {[%clk 0:03:55.8]}
48... Rh2+ {[%clk 0:03:22.4]} 49. Kf3 {[%clk 0:03:52.5]} 49... Rh3+ {[%clk
0:03:18]} 50. Ke2 {[%clk 0:03:50.4]} 50... Rh4 {[%clk 0:02:41.4]} 51. Ra8 {[%clk
0:03:49.1]} 51... Rf4 {[%clk 0:02:38.6]} 52. Rg8 {[%clk 0:03:46.4]} 52... Kf5
{[%clk 0:02:39.4]} 53. Rf8+ {[%clk 0:03:43.7]} 53... Kg4 {[%clk 0:02:40]} 54.
Rd8 {[%clk 0:03:44.8]} 54... d4 {[%clk 0:02:41.4]} 55. Rg8 {[%clk 0:03:44.5]}
55... Kh4 {[%clk 0:02:41.8]} 56. Rh8+ {[%clk 0:03:31.1]} 56... Kg3 {[%clk
0:02:42.7]} 0-1

[Event "GrandPrix_30.05"]
[Site "Chess.com"]
[Date "2020.05.30"]
[Round "6"]
[White "KuzubovYuriy"]
[Black "francyIM"]
[Result "1-0"]
[WhiteElo "2539"]
[BlackElo "2567"]
[TimeControl "600+2"]
[EndTime "10:52:35 PDT"]
[Termination "KuzubovYuriy won by resignation"]

1. d4 {[%clk 0:10:01.9]} 1... Nf6 {[%clk 0:09:59]} 2. c4 {[%clk 0:10:02.1]} 2...
e6 {[%clk 0:09:59.6]} 3. Nf3 {[%clk 0:09:49.1]} 3... c5 {[%clk 0:09:55.9]} 4. e3
{[%clk 0:09:47.9]} 4... b6 {[%clk 0:09:39.5]} 5. Nc3 {[%clk 0:09:42.2]} 5... g6
{[%clk 0:09:39.6]} 6. e4 {[%clk 0:09:07.5]} 6... cxd4 {[%clk 0:09:36]} 7. Nxd4
{[%clk 0:09:08.4]} 7... d6 {[%clk 0:09:33.4]} 8. Bg5 {[%clk 0:08:57.6]} 8... h6
{[%clk 0:09:26.7]} 9. Bh4 {[%clk 0:08:36]} 9... g5 {[%clk 0:08:48.2]} 10. Bg3
{[%clk 0:08:35]} 10... Bb7 {[%clk 0:08:48.9]} 11. Ndb5 {[%clk 0:08:07.5]} 11...
e5 {[%clk 0:08:43.2]} 12. f3 {[%clk 0:07:50.4]} 12... a6 {[%clk 0:08:41.8]} 13.
Na3 {[%clk 0:07:48.3]} 13... Nbd7 {[%clk 0:08:40.3]} 14. Nc2 {[%clk 0:07:46]}
14... Nc5 {[%clk 0:08:40.4]} 15. Ne3 {[%clk 0:07:42.2]} 15... Ne6 {[%clk
0:08:41.2]} 16. Qd2 {[%clk 0:07:08.5]} 16... Nd4 {[%clk 0:08:35.9]} 17. Ne2
{[%clk 0:07:05.1]} 17... Ne6 {[%clk 0:08:25.1]} 18. O-O-O {[%clk 0:06:57.9]}
18... Rc8 {[%clk 0:08:25]} 19. Kb1 {[%clk 0:06:56.2]} 19... Nh5 {[%clk
0:08:25.7]} 20. Bf2 {[%clk 0:06:42.8]} 20... Nhf4 {[%clk 0:08:25.1]} 21. Nf5
{[%clk 0:06:38.7]} 21... Rc6 {[%clk 0:08:13.7]} 22. Nc3 {[%clk 0:06:16.7]} 22...
Ng7 {[%clk 0:08:11.6]} 23. g3 {[%clk 0:06:06.8]} 23... Nfe6 {[%clk 0:08:10.7]}
24. h4 {[%clk 0:05:56.4]} 24... gxh4 {[%clk 0:07:59.4]} 25. Nxh4 {[%clk
0:05:34.3]} 25... Be7 {[%clk 0:07:55.3]} 26. Nd5 {[%clk 0:05:12.2]} 26... Bg5
{[%clk 0:07:30.9]} 27. f4 {[%clk 0:05:03.7]} 27... Bf6 {[%clk 0:06:55.2]} 28.
Nf5 {[%clk 0:04:48.9]} 28... Nxf5 {[%clk 0:06:48]} 29. exf5 {[%clk 0:04:49.2]}
29... Nc5 {[%clk 0:06:47.1]} 30. Bg2 {[%clk 0:04:20.1]} 30... Bg7 {[%clk
0:06:27.5]} 31. g4 {[%clk 0:03:40.2]} 31... exf4 {[%clk 0:05:44.6]} 32. Rhe1+
{[%clk 0:03:00.6]} 32... Kf8 {[%clk 0:03:48.8]} 33. Nxf4 {[%clk 0:02:45.9]}
33... Rc7 {[%clk 0:03:21.8]} 34. Qxd6+ {[%clk 0:02:14.1]} 34... Qxd6 {[%clk
0:03:20.4]} 35. Rxd6 {[%clk 0:02:16]} 35... Kg8 {[%clk 0:03:22]} 36. Bxc5 {[%clk
0:02:05.9]} 36... bxc5 {[%clk 0:03:20.8]} 37. Bxb7 {[%clk 0:02:06.2]} 37... Rxb7
{[%clk 0:03:22.7]} 38. f6 {[%clk 0:02:06.1]} 38... Bf8 {[%clk 0:03:21.5]} 39.
Re8 {[%clk 0:02:05.4]} 39... Kh7 {[%clk 0:03:08.9]} 40. Rdd8 {[%clk 0:02:06]}
40... h5 {[%clk 0:03:09.8]} 41. gxh5 {[%clk 0:02:03.7]} 41... Rg8 {[%clk
0:03:07.7]} 42. Rxf8 {[%clk 0:02:03.2]} 42... Rg1+ {[%clk 0:03:07.2]} 43. Kc2
{[%clk 0:02:03.5]} 1-0

[Event "GrandPrix_30.05"]
[Site "Chess.com"]
[Date "2020.05.30"]
[Round "6"]
[White "eristeski7"]
[Black "IwkooO"]
[Result "0-1"]
[WhiteElo "2147"]
[BlackElo "2345"]
[TimeControl "600+2"]
[EndTime "10:52:53 PDT"]
[Termination "IwkooO won on time"]

1. e4 {[%clk 0:10:01.9]} 1... c5 {[%clk 0:10:01.2]} 2. Nf3 {[%clk 0:10:02.6]}
2... e6 {[%clk 0:10:01.7]} 3. d4 {[%clk 0:10:03]} 3... cxd4 {[%clk 0:10:03.6]}
4. Nxd4 {[%clk 0:10:04.8]} 4... Nc6 {[%clk 0:10:05.5]} 5. Nc3 {[%clk 0:10:04.8]}
5... a6 {[%clk 0:10:07]} 6. f4 {[%clk 0:10:03.7]} 6... Nxd4 {[%clk 0:10:00.3]}
7. Qxd4 {[%clk 0:10:02.8]} 7... b5 {[%clk 0:10:01.9]} 8. Be3 {[%clk 0:10:00.1]}
8... Bb7 {[%clk 0:10:02.5]} 9. O-O-O {[%clk 0:09:56.6]} 9... Rc8 {[%clk
0:09:56.6]} 10. a3 {[%clk 0:09:11.7]} 10... Nf6 {[%clk 0:09:11.1]} 11. e5 {[%clk
0:08:43.7]} 11... Bc5 {[%clk 0:08:48.2]} 12. Qd2 {[%clk 0:08:34.3]} 12... Bxe3
{[%clk 0:08:11.6]} 13. Qxe3 {[%clk 0:08:32.6]} 13... Nd5 {[%clk 0:08:12.9]} 14.
Nxd5 {[%clk 0:08:29.8]} 14... Bxd5 {[%clk 0:08:14.8]} 15. f5 {[%clk 0:07:55.2]}
15... Qa5 {[%clk 0:07:27.9]} 16. Rd4 {[%clk 0:05:55.9]} 16... g6 {[%clk
0:07:20.5]} 17. fxg6 {[%clk 0:03:51.7]} 17... hxg6 {[%clk 0:07:18.2]} 18. h4
{[%clk 0:03:40.8]} 18... Qc7 {[%clk 0:07:08.5]} 19. Bd3 {[%clk 0:03:14.6]} 19...
Rh5 {[%clk 0:06:40.2]} 20. Re1 {[%clk 0:02:51.7]} 20... Bxg2 {[%clk 0:06:38.2]}
21. Rg4 {[%clk 0:02:46.1]} 21... Bd5 {[%clk 0:05:44.6]} 22. Qf4 {[%clk
0:01:37.5]} 22... Rf5 {[%clk 0:05:18.3]} 23. Qe3 {[%clk 0:00:40.6]} 23... Rf3
{[%clk 0:05:02.7]} 24. Qe2 {[%clk 0:00:35.2]} 24... Qc5 {[%clk 0:05:00.5]} 25.
Qd2 {[%clk 0:00:07.2]} 25... Rf2 {[%clk 0:04:40.5]} 26. Re2 {[%clk 0:00:07.4]}
26... Rf1+ {[%clk 0:04:41.8]} 27. Re1 {[%clk 0:00:07.7]} 27... Rxe1+ {[%clk
0:04:38.2]} 28. Qxe1 {[%clk 0:00:08.3]} 28... Bf3 {[%clk 0:04:39.8]} 29. Rg3
{[%clk 0:00:03.7]} 29... Bh5 {[%clk 0:04:40]} 30. Qd2 {[%clk 0:00:05]} 30...
Qxe5 {[%clk 0:04:38.7]} 31. Re3 {[%clk 0:00:05.3]} 31... Qf6 {[%clk 0:04:37.8]}
32. Qe1 {[%clk 0:00:05.9]} 32... d5 {[%clk 0:04:35.4]} 33. Kb1 {[%clk
0:00:04.4]} 33... Kf8 {[%clk 0:04:23.4]} 34. Re5 {[%clk 0:00:02.3]} 34... Qf3
{[%clk 0:04:16.4]} 0-1

[Event "GrandPrix_30.05"]
[Site "Chess.com"]
[Date "2020.05.30"]
[Round "6"]
[White "tianachess"]
[Black "esskeettit"]
[Result "1-0"]
[WhiteElo "2012"]
[BlackElo "2079"]
[TimeControl "600+2"]
[EndTime "10:52:54 PDT"]
[Termination "tianachess won by checkmate"]

1. d4 {[%clk 0:09:59]} 1... Nf6 {[%clk 0:10:00.7]} 2. Nf3 {[%clk 0:09:56.5]}
2... e6 {[%clk 0:09:59.5]} 3. c4 {[%clk 0:09:42.7]} 3... d5 {[%clk 0:09:57.4]}
4. Nc3 {[%clk 0:09:42.1]} 4... Bb4 {[%clk 0:09:57.5]} 5. Bg5 {[%clk 0:09:39.4]}
5... c5 {[%clk 0:09:58]} 6. cxd5 {[%clk 0:09:29.5]} 6... exd5 {[%clk 0:09:57.9]}
7. Bxf6 {[%clk 0:08:54.3]} 7... Qxf6 {[%clk 0:09:57.8]} 8. e3 {[%clk 0:08:54.8]}
8... c4 {[%clk 0:09:56.6]} 9. Be2 {[%clk 0:08:30.3]} 9... O-O {[%clk 0:09:27.9]}
10. O-O {[%clk 0:08:30.1]} 10... Bxc3 {[%clk 0:09:29.3]} 11. bxc3 {[%clk
0:08:30.5]} 11... Nc6 {[%clk 0:09:29.5]} 12. Nd2 {[%clk 0:08:20.8]} 12... b5
{[%clk 0:09:23.2]} 13. e4 {[%clk 0:08:13.3]} 13... dxe4 {[%clk 0:09:22]} 14.
Nxe4 {[%clk 0:08:12.7]} 14... Qg6 {[%clk 0:08:56.6]} 15. Bf3 {[%clk 0:08:09.7]}
15... Bf5 {[%clk 0:08:51.9]} 16. Re1 {[%clk 0:07:45.7]} 16... Rad8 {[%clk
0:08:42.5]} 17. Ng3 {[%clk 0:07:23.8]} 17... Bd3 {[%clk 0:08:35.1]} 18. a3
{[%clk 0:07:01.4]} 18... a5 {[%clk 0:08:07.8]} 19. d5 {[%clk 0:06:34.5]} 19...
Na7 {[%clk 0:07:47.7]} 20. Ne2 {[%clk 0:06:18.6]} 20... Bxe2 {[%clk 0:07:17.1]}
21. Qxe2 {[%clk 0:06:06.9]} 21... Nc8 {[%clk 0:07:15.7]} 22. a4 {[%clk
0:05:38.5]} 22... Nd6 {[%clk 0:06:50.6]} 23. axb5 {[%clk 0:05:37.3]} 23... Rfe8
{[%clk 0:06:31.6]} 24. Qb2 {[%clk 0:05:33]} 24... Rxe1+ {[%clk 0:05:40.3]} 25.
Rxe1 {[%clk 0:05:30.2]} 25... h6 {[%clk 0:05:28.8]} 26. h3 {[%clk 0:05:29.1]}
26... Rb8 {[%clk 0:05:27.5]} 27. b6 {[%clk 0:05:24.2]} 27... Nf5 {[%clk
0:05:21.3]} 28. Qb5 {[%clk 0:03:27.8]} 28... Rxb6 {[%clk 0:04:28.2]} 29. Qe8+
{[%clk 0:02:15.7]} 29... Kh7 {[%clk 0:04:28.8]} 30. Be4 {[%clk 0:02:16.8]} 30...
Rf6 {[%clk 0:04:09.4]} 31. Qc8 {[%clk 0:02:07.3]} 31... Qg5 {[%clk 0:04:00]} 32.
d6 {[%clk 0:01:53.6]} 32... g6 {[%clk 0:04:01]} 33. d7 {[%clk 0:01:47.5]} 33...
Rd6 {[%clk 0:04:02.4]} 34. Bxf5 {[%clk 0:01:29.7]} 34... gxf5 {[%clk 0:04:04.3]}
35. Qe8 {[%clk 0:01:11.9]} 35... Qf6 {[%clk 0:03:42.6]} 36. Re7 {[%clk
0:01:00.2]} 36... Rd1+ {[%clk 0:03:43.6]} 37. Kh2 {[%clk 0:01:00.1]} 37... Qd6+
{[%clk 0:03:45]} 38. g3 {[%clk 0:00:58]} 38... Qc6 {[%clk 0:03:33.9]} 39. Qxf7+
{[%clk 0:00:57]} 39... Kh8 {[%clk 0:03:34.4]} 40. Qg7# {[%clk 0:00:57.9]} 1-0